Cogmind - Beta 9 @@@ ROGUE MODE // 2019.10.22 @ 18:21:18 // Halloween2019/Abominations Player: Nikolayag Result: Core destroyed Performance ------------- Evolutions (0) 0 Regions Visited (1) 200 Robots Destroyed (11) 55 Value Destroyed (573) 573 Prototype IDs (2) 40 Alien Tech Used (0) 0 Bonus (0) 0 TOTAL SCORE: 868 Bonus ------- None Cogmind --------- Core Integrity 0/250 Matter 109/300 Energy 100/100 System Corruption 0% Temperature Cool (575) Location -10/Materials Parts ------- Power (1) Propulsion (2) Light Treads Compact Wheel Utility (2) Small Storage Unit Large Storage Unit Weapon (2) Light Cannon Inventory (12) Light Ion Engine Light Assault Rifle Light Cannon Peak State ------------ Power Light Ion Engine Propulsion Light Treads Wheel Utility Small Storage Unit Large Storage Unit Weapon Light Assault Rifle Light Assault Rifle Inventory Light Ion Engine Light Ion Engine Light Treads Wheel Wheel Compact Wheel Medium Laser Light Cannon Light Cannon Light Cannon [Rating: 8] Favorites ----------- Power Light Ion Engine Engine Light Ion Engine Propulsion Light Treads Treads Light Treads Wheel Wheel Utility Small Storage Unit Storage Small Storage Unit Weapon Light Assault Rifle Energy Gun Medium Laser Ballistic Gun Light Assault Rifle Ballistic Cannon Light Cannon Build | -11 -10 ------- Run | Scr Mat Slots Evolved . | . . Power . | . . Propulsion . | . . Utility . | . . Weapon . | . . Parts Attached 19 | 7 12 Power 2 | 1 1 Engine 2 | 1 1 Core . | . . Reactor . | . . Propulsion 6 | 2 4 Treads 2 | 1 1 Leg . | . . Wheel 4 | 1 3 Hover . | . . Flight . | . . Utility 3 | 2 1 Device . | . . Storage 3 | 2 1 Processor . | . . Hackware . | . . Protection . | . . Artifact . | . . Weapon 8 | 2 6 Energy Gun 1 | . 1 Energy Cannon . | . . Ballistic Gun 3 | 2 1 Ballistic Cannon 4 | . 4 Launcher . | . . Special Weapon . | . . Impact Weapon . | . . Slashing Weapon . | . . Piercing Weapon . | . . Special Melee Weapon . | . . Unidentified Prototypes . | . . Parts Lost 10 | . 10 Power 2 | . 2 Propulsion 4 | . 4 Utility . | . . Weapon 4 | . 4 Highest Loss Streak 6 | . 6 Average Slot Usage (%) 92 | . 92 Engine 11 | . 11 Treads 14 | . 14 Wheel 12 | . 12 Storage 28 | . 28 Energy Gun 1 | . 1 Ballistic Gun 12 | . 12 Ballistic Cannon 11 | . 11 Naked Turns . | . . Heaviest Build 29 | 13 29 Greatest Support 20 | 10 20 Greatest Overweight (x) 2 | 1 2 Average Overweight (x) 1 | . 1 Largest Inventory Capacity 12 | 8 12 Average Capacity 9 | 6 10 Most Carried 11 | 7 11 Average Carried 5 | 4 6 Final Capacity 12 | . 12 Final Carried 3 | . 3 Class Distribution -------------------- 100% | Mutant Dominant Class ---------------- Mutant | -10/Materials Resources | -11 -10 ----------- Run | Scr Mat Matter Collected 417 | 224 193 Remotely . | . . Salvage Created 534 | 110 424 Parts 21 | 4 17 Haulers Intercepted . | . . Recyclers Shooed . | . . Parts Field Recycled . | . . Retrieved Matter . | . . Parts Self-Destructed . | . . Prevented . | . . Kills | -11 -10 ------- Run | Scr Mat Combat Hostiles Destroyed 9 | . 9 Guns 4 | . 4 Cannons 5 | . 5 Classes Destroyed 3 | 2 1 Tunneler 1 | 1 . Recycler 1 | 1 . Abomination 9 | . 9 Best Kill Streak 3 | 1 3 Combat Bots Only 3 | . 3 Max Kills in Single Turn 1 | 1 1 Gunslinging . | . . Exploded . | . . Melee . | . . Uniques/NPCs Destroyed . | . . Combat | -11 -10 -------- Run | Scr Mat Damage Taken 1244 | . 1244 Core 297 | . 297 Absorbed by Shields . | . . Core Remaining (%) 100 | 100 . Volleys Fired 73 | 12 61 Largest 2 | 2 2 Hottest 85 | 40 85 Shots Fired 125 | 24 101 Gun 76 | 24 52 Cannon 49 | . 49 Launcher . | . . Special . | . . Kinetic 121 | 24 97 Thermal 4 | . 4 Explosive . | . . Electromagnetic . | . . Robot Hit Streak 15 | 9 15 Robot Miss Streak 3 | 3 3 Penetration Max . | . . Secondary Targets 1 | . 1 Max Gunslinging Chain 1 | . 1 Shots Hit Robots 97 | 16 81 Core Hits 34 | 5 29 Critical Hits 3 | . 3 Critical Kills . | . . Critical Parts Destroyed 3 | . 3 Melee Attacks . | . . Impact . | . . Slashing . | . . Piercing . | . . Sneak Attacks . | . . Combat Hostiles . | . . Follow-up Attacks . | . . Damage Inflicted 1216 | 113 1103 Guns 440 | 113 327 Cannons 776 | . 776 Explosions . | . . Melee . | . . Ramming . | . . Kinetic 1185 | 113 1072 Thermal 31 | . 31 Explosive . | . . Electromagnetic . | . . Impact . | . . Slashing . | . . Piercing . | . . Highest Corruption . | . . Average Corruption . | . . Corruption Purged . | . . Overload Shots . | . . Overflow Damage 66 | . 66 Projectiles 66 | . 66 Explosions . | . . Melee . | . . Knockbacks 3 | . 3 Impact . | . . Kinetic 3 | . 3 Secondary . | . . Self-Inflicted Damage . | . . Shots . | . . Rammed . | . . Targets Rammed . | . . Kicked . | . . Crushed . | . . Highest Temperature 764 | . 764 Average Temperature 246 | . 246 Received Heat Transfer 294 | . 294 Effects 30 | . 30 Shutdowns 4 | . 4 Energy Bleed 3 | . 3 Interference 1 | . 1 Matter Decay 5 | . 5 Short Circuit 1 | . 1 Damage (minor) 1 | . 1 Damage (major) 12 | . 12 Damage (core) 3 | . 3 Siege Activations . | . . Robots Corrupted . | . . Combat Hostiles . | . . Parts Fried . | . . Impact Corruptions . | . . Robots Melted . | . . Combat Hostiles . | . . Parts Melted . | . . Heat Transferred 18 | . 18 Parts Sabotaged . | . . Parts Stolen . | . . Parts Stripped . | . . Power Chain Reactions . | . . Missiles Intercepted . | . . Alert | -11 -10 ------- Run | Scr Mat Peak Influence 34 | 10 34 Average Influence 12 | 3 14 Maximum Alert Level . | . . Low Security (%) 100 | . . Level 1 . | . . Level 2 . | . . Level 3 . | . . Level 4 . | . . Level 5 . | . . High Security . | . . Max Security . | . . Squads Dispatched 3 | . 3 Investigation 2 | . 2 Extermination . | . . Reinforcement 1 | . 1 Assault . | . . Garrison . | . . Intercept . | . . Construction Impeded . | . . Haulers Reinforced . | . . Stealth | -11 -10 --------- Run | Scr Mat Distress Signals 1 | . 1 Communications Jammed . | . . Distress Signals . | . . Times Spotted 15 | . 15 Peak Tracking Total 6 | . 6 Tactical Retreats 1 | . 1 Traps | -11 -10 ------- Run | Scr Mat Traps Triggered . | . . Indirectly . | . . Trap Hack Attempts . | . . Triggered . | . . Disarmed . | . . Reprogrammed . | . . Reused . | . . Traps Extracted . | . . Installed . | . . Triggered . | . . Machines | -11 -10 ---------- Run | Scr Mat Machines Disabled . | . . Max in Single Turn . | . . Machines Sabotaged . | . . Garrisons Compromised . | . . Overloaded Fab Kills . | . . Fab Network Shutdowns . | . . Hacking | -11 -10 --------- Run | Scr Mat Machines Accessed 2 | . 2 Terminals 2 | . 2 Fabricators . | . . Repair Stations . | . . Recycling Units . | . . Scanalyzers . | . . Garrison Access . | . . Total Hacks 6 | . 6 Successful 5 | . 5 Failed 1 | . 1 Catastrophic . | . . Database Lockouts . | . . Manual 4 | . 4 Terminals 6 | . 6 Fabricators . | . . Repair Stations . | . . Recycling Units . | . . Scanalyzers . | . . Garrison Access . | . . Terminal Hacks 2 | . 2 Prototype ID Bank 1 | . 1 Zone Layout 1 | . 1 Fabricator Hacks . | . . Repair Station Hacks . | . . Recycling Unit Hacks . | . . Scanalyzer . | . . Garrison Access Hacks . | . . Unauthorized Hacks 6 | . 6 Terminals 3 | . 3 Track 1 | . 1 Botnet 2 | . 2 Fabricators . | . . Repair Stations . | . . Recycling Units . | . . Scanalyzers . | . . Garrison Access . | . . Data Cores Recovered . | . . Used . | . . Hacking Detections 1 | . 1 Full Trace Events . | . . Feedback Events . | . . Feedback Blocked . | . . Robot Schematics Acquired . | . . Robots Built . | . . Matter . | . . Time . | . . Total Robot Build Rating . | . . Part Schematics Acquired . | . . Parts Built . | . . Matter . | . . Time . | . . Total Part Build Rating . | . . Parts Repaired . | . . Time . | . . Parts Recycled . | . . Recycled Matter . | . . Retrieved Matter . | . . Retrieved Components . | . . Parts Scanalyzed . | . . Part Schematics Acquired . | . . Parts Damaged . | . . Bothacking | -11 -10 ------------ Run | Scr Mat Used RIF Installer . | . . Robots Hacked . | . . Non-combat . | . . Combat . | . . Robot Hacks Applied . | . . Relay Couplers Released . | . . Robots Rewired . | . . Allies Hacked . | . . Hacks Repelled . | . . Allies | -11 -10 -------- Run | Scr Mat Total Allies . | . . Largest Group . | . . Highest-Rated Group . | . . Highest-Rated Ally . | . . Total Orders . | . . Ally Attacks . | . . Total Damage . | . . Kills . | . . Allies Corrupted . | . . Allies Melted . | . . Intel | -11 -10 ------- Run | Scr Mat Robot Analysis Total . | . . Derelict Logs Recovered . | . . Drone Launches . | . . Drone Recoveries . | . . Exploration | -11 -10 ------------- Run | Scr Mat Turns Passed 530 | 125 405 Spaces Moved 278 | 85 193 Core 1 | 1 . Treads 8 | . 8 Legs . | . . Wheels 269 | 84 185 Hover . | . . Flight . | . . Fastest Speed 50 | 50 90 Average Speed 96 | 84 101 Slowest Speed 180 | 90 180 Overloaded Moves . | . . Propulsion Burnouts . | . . Robots Hopped . | . . Cave-ins Triggered . | . . Exploration Rate (%) 21 | 6 37 Regions Visited 1 Branch Regions . Pre-discovered Areas . | . . Known Exits Taken . | . . Unknown Exits Taken 1 | 1 . Scrap Searched . | . . Spaces Dug . | . . Terrain Destroyed . | . . Melee . | . . Projectile . | . . AOE . | . . Actions | -11 -10 --------- Run | Scr Mat Total 403 | 115 288 Wait 21 | 5 16 Move 277 | 84 193 Hop . | . . Pick Up 11 | 7 4 Fast Attach 7 | 7 . Attach 9 | . 9 Detach 1 | . 1 Swap 3 | . 3 Drop 1 | . 1 Fire 73 | 12 61 Melee . | . . Ram . | . . Kick . | . . Crush . | . . Escape Stasis . | . . Rewire . | . . Trap . | . . Miscellaneous . | . . Route ------- -11/Scrapyard -10/Materials History --------- Turn | Location | Event 9 | -11/Scrapyard | Discovered new exit (range 15) 126 | -11/Scrapyard | Entered Materials 308 | -10/Materials | Build established: Mutant 336 | -10/Materials | Core integrity fell below 50% 426 | -10/Materials | Lost 6 parts (1p2n3w) 454 | -10/Materials | Core integrity fell below 20% 496 | -10/Materials | Lost 3 parts (1p1n1w) 517 | -10/Materials | Discovered new exit (range 15) 532 | -10/Materials | Core destroyed Last Messages --------------- 00459_ Minor Abomination spits out Wheel. 00459_ Minor Abomination absorbs Wheel. 00460_ T-07 Excavator heat damages Wheel. 00460_ T-07 Excavator destroyed. 00461_ Frozen by Ice Anomaly. 00462_ Lgt. Ion Engine destroyed. 00465_ Lgt. Assault Rifle destroyed. 00474_ Destroyed Sml. Laser. 00476_ Minor Abomination destroyed. 00480_ Overheating: Lrg. Storage Unit damaged (-11). 00498_ Acquired 14 matter. 00503_ Frozen by Ice Anomaly. 00509_ Overheating: Matter decay (-17). 00517_ EXIT=FOUND (Blocked) 00522_ Frozen by Ice Anomaly. 00531_ Overheating: Com. Wheel damaged (-8). 00531_ Overheating: Lgt. Treads damaged (-6). 00531_ Overheating: Sml. Storage Unit damaged (-8). 00531_ Overheating: Lgt. Cannon damaged (-14). 00532_ Overheating: Core damaged (-50). Map ----- +----------------------------------------------------+ | | | | | | | ##??????????????????????????????? | | ??????????????????????????????? | | !#?????????????????????????????? | | #?????????????????????????????? | | " #?????????????????????????????? | | Y #??????##########?????????????? | | " #??????# #?????????????? | | ######## #?????????????? | | +### # #?????????????? | | = # """ #?????????????? | | %= + """"" #???####??????? | | # """"" #???#"""##????? | | #### # """"" #?##"!!!"##???? | | ???##% ## """ #?#"" ""#???? | | ##### ## #?# #???? | | # ###########?# < #???? | | # #???????????# ????? | | # ##########??? ????? | | + / #???? ?????? | | " # # #????# #?????? | | T # # ###### #?????? | | " # # # +?????? | | # # """ + @#?????? | | ##### # """"" # #?????? | | ????# # """"" # " #?????? | | ????# # """"" # T #?????? | | ##### # """ # " #?????? | | # ########## #?????? | | # #????????# #?????? | | # #????????# #### #?????? | | / #????????# #??# #?????? | | # #????????# #??? #?????? | | # #????????# #???%#?????? | | # #???????##% ##?? #?????? | | # ######### #?? #?????? | | ##### #??n#?????? | | #???# #?? ??????? | | ##### #?? ??????? | | ######### #?????????? | | #???????#######?????????? | | #???????????????????????? | | #+#######???????????????????????? | | #??????????????????????????? | | """ #??????????????????????????? | | """ #??????????????????????????? | | """ #??????????????????????????? | | #??????????????????????????? | +----------------------------------------------------+ Best States ------------- Heat Dissipation 25 Energy Generation 10 Energy Capacity 125 Matter Stores 267 Matter Capacity 300 Sight Range 16 Terrain Scan Density 10 Evasion (%) 44 Recoil Reduction 1 Item Schematics ----------------- None Robot Schematics ------------------ None Fabricated ------------ Nothing Alien Tech Used ----------------- None Achievements -------------- None Challenges ------------ None Game ------ Seed PointHypervelocityMapper Manual? 0 Play Time 00:11:44 Cumulative 154.6 hours Start 2019.10.22 @ 18:14:03 End 2019.10.22 @ 18:21:18 Sessions 1 Manual Loads 0 Difficulty Rogue Special Mode Halloween2019/Abominations Game No. 149 Rogue 149 Adventurer 0 Explorer 0 Win Type - Total 3 Types 3/0/0/0/0/0/0 Lore% 48 Gallery% 67 Achievement% 42 Wizard Run 0 Options --------- ASCII 0 Keyboard 1 Movement Numpad Keybinds 0 Fullscreen 1 Font 18/SmallcapsGlow Map View 76x50 Tactical HUD 1 Map Filters NONE Filters NONE Steam 1 RUN: 4dc0a48b-c474-4338-aaf8-8e4dbb5a7a69